Cogmind - Beta 17 @@@ ROGUE MODE // 2026.08.10 @ 23:27:35 // Winter2019/RPGLIKE Player: Grimbling Result: Defending 0bPrime! Performance ------------- Evolutions (8) 4000 Regions Visited (20) 4000 Robots Destroyed (499) 2495 Value Destroyed (31613) 31613 Prototype IDs (171) 3420 Alien Tech Used (4) 800 Bonus (46104) 46104 TOTAL SCORE: 92432 Bonus ------- High Alert Combat Kills 20149 Follower Combat Kills 211 Hunted by Unchained 500 Registered with UFD 300 Met Optimus in HQ 500 Met Zhirov 300 Met Warlord at Base 500 MAIN.C Attacked Warlord 500 Warlord Defense Kills 644 Used Core Reset Matrix 3000 Scanned by Researcher 500 Met Sigix 2000 Met Optimus at Protoforge 1000 Executed Drillbomb Mission 10000 Optimus Survived to 0b1 3000 Win 3000 Cogmind --------- Core Integrity 782/1000 Matter 2000/2000 Energy 1000/1000 System Corruption 0% Temperature Cool (0) Movement Flying (18) Location 0bPrime Parts ------- > --- POWER (2) -------- Vortex Chain Reactor > --- PROPULSION (4) --- Experimental Surge Thruster Experimental Surge Thruster Concept Fieldthrust Drive Concept Fieldthrust Drive > --- UTILITY (18) ----- Makeshift Trap Scanner Advanced Signal Interpreter Long-range Terrain Scanner Experimental Target Analyzer Experimental Core Analyzer Concept Recoil Nullifier Experimental Kinecellerator Advanced Weapon Cycler Experimental Reaction Control System Heavy Armor Plating Centrium Medium Armor Plating Graphene Brace AEGIS Remote Shield Concept Antimissile System Advanced Dynamic Insulation System Advanced System Restoration Module Concept Matter Streamer > --- WEAPON (2) ------- Perforator > --- INVENTORY (13) --- Protomatter-80 Protomatter-80 Experimental Surge Thruster Advanced Transmission Jammer Crosscalibrator Transdimensional Reconstructor Concept Plasma Driver Concept Plasma Driver Omega Cannon Advanced Remote Datajack Improved Plasma Cutter Peak State ------------ > --- POWER ------------ Vortex Chain Reactor > --- PROPULSION ------- Experimental Surge Thruster Experimental Surge Thruster Concept Fieldthrust Drive Concept Fieldthrust Drive > --- UTILITY ---------- Makeshift Trap Scanner Advanced Signal Interpreter Long-range Terrain Scanner Experimental Target Analyzer Experimental Core Analyzer Concept Recoil Nullifier Experimental Kinecellerator Advanced Weapon Cycler Experimental Reaction Control System Heavy Armor Plating Centrium Medium Armor Plating Graphene Brace AEGIS Remote Shield Concept Antimissile System Advanced Dynamic Insulation System Advanced System Restoration Module Concept Matter Streamer > --- WEAPON ----------- Perforator > --- INVENTORY -------- Protomatter Protomatter Transdimensional Reconstructor Concept Plasma Driver Concept Plasma Driver Advanced Remote Datajack Improved Plasma Cutter UFD Drillbomb UFD Drillbomb [Rating: 245] Favorites ----------- Power Vortex Chain Reactor Engine Ion Engine Power Core Neutrino Core Reactor Vortex Chain Reactor Propulsion Hover Unit Leg Aluminum Leg Hover Unit Hover Unit Flight Unit Experimental Surge Thruster Utility Tractor Beam Device Tractor Beam Storage Concept Chromion Battery Processor Experimental Core Analyzer Protection Improved Heavy Armor Plating Weapon Heavy Gauss Cannon Energy Gun Autobeam Energy Cannon Concept Plasma Driver Ballistic Gun Assault Rifle Ballistic Cannon Heavy Gauss Cannon Launcher Sigix Terminator Special Weapon Improved Plasma Cutter Slashing Weapon Mining Claw Build | -11 -10 -10 -10 -7 -7 -5 -5 -5 -5 -4 -4 -4 -4 -4 -3 -3 -3 -2 -2 -2 ------- Run | Yrd Mat Min Sub Rec Scr Fac Upp Upp War Pro Fac Upp Upp Zhi Pro Res Qua Res Tes Frg Slots Evolved 21 | 4 9 . . . 2 4 2 . . . . . . . . . . . . . Power . | . . . . . . . . . . . . . . . . . . . . . Propulsion 3 | 1 2 . . . . . . . . . . . . . . . . . . . Utility 17 | 2 7 . . . 2 4 2 . . . . . . . . . . . . . Weapon 1 | 1 . . . . . . . . . . . . . . . . . . . . Parts Attached 171 | 5 13 . 7 8 9 15 1 1 8 2 7 5 3 4 . 4 7 2 11 59 Power 11 | 1 . . 1 1 2 1 1 1 1 . . . . . . . . . . 2 Engine 3 | 1 . . . . 2 . . . . . . . . . . . . . . . Core 5 | . . . 1 1 . 1 1 1 . . . . . . . . . . . . Reactor 3 | . . . . . . . . . 1 . . . . . . . . . . 2 Propulsion 27 | 2 7 . . . . 2 . . 1 1 2 . . 3 . . 1 1 1 6 Treads . | . . . . . . . . . . . . . . . . . . . . . Leg 2 | 2 . . . . . . . . . . . . . . . . . . . . Wheel . | . . . . . . . . . . . . . . . . . . . . . Hover 17 | . 3 . . . . 2 . . 1 1 2 . . 3 . . 1 1 1 2 Flight 8 | . 4 . . . . . . . . . . . . . . . . . . 4 Utility 99 | 1 4 . 2 3 5 9 . . 5 1 5 2 3 . . 3 4 1 6 45 Device 63 | 1 2 . 1 2 2 6 . . 3 . 4 2 2 . . 2 4 1 5 26 Storage 1 | . . . . . . . . . . . . . . . . . . . . 1 Processor 20 | . 1 . . . 1 2 . . 2 . 1 . 1 . . 1 . . 1 10 Hackware . | . . . . . . . . . . . . . . . . . . . . . Protection 15 | . 1 . 1 1 2 1 . . . 1 . . . . . . . . . 8 Artifact . | . . . . . . . . . . . . . . . . . . . . . Weapon 34 | 1 2 . 4 4 2 3 . . 1 . . 3 . 1 . 1 2 . 4 6 Energy Gun 3 | . . . 1 1 . . . . . . . . . . . . . . . 1 Energy Cannon 3 | . . . . . . . . . . . . . . . . . . . . 3 Ballistic Gun 5 | 1 1 . 3 . . . . . . . . . . . . . . . . . Ballistic Cannon 17 | . . . . 3 2 3 . . . . . 2 . . . 1 1 . 4 1 Launcher 1 | . . . . . . . . . . . . . . . . . 1 . . . Special Weapon 4 | . . . . . . . . . 1 . . 1 . 1 . . . . . 1 Impact Weapon . | . . . . . . . . . . . . . . . . . . . . . Slashing Weapon 1 | . 1 . . . . . . . . . . . . . . . . . . . Piercing Weapon . | . . . . . . . . . . . . . . . . . . . . . Special Melee Weapon . | . . . . . . . . . . . . . . . . . . . . . Unidentified Prototypes 57 | . . . 1 . . 1 1 . 7 . . 2 . 2 . 1 3 2 9 28 Parts Lost 4 | . . . . 1 . . . . . 1 . . . . . . . . 1 1 Power . | . . . . . . . . . . . . . . . . . . . . . Propulsion . | . . . . . . . . . . . . . . . . . . . . . Utility 4 | . . . . 1 . . . . . 1 . . . . . . . . 1 1 Weapon . | . . . . . . . . . . . . . . . . . . . . . Highest Loss Streak 1 | . . . . 1 . . . . . 1 . . . . . . . . 1 1 To Critical Strikes . | . . . . . . . . . . . . . . . . . . . . . Average Backups 6 | . 2 2 6 9 8 4 6 6 7 5 7 5 6 7 9 8 7 6 5 6 Power . | . . . . 1 . . . . . . . . . . . . . . . . Propulsion . | . . . . 1 . . . . . . . . . . 2 2 2 1 . . Utility . | . . . . . . . 1 1 1 . 1 . . . . . . . . 1 Weapon 2 | . 1 2 5 7 5 1 2 2 3 1 1 1 2 2 2 2 2 1 2 1 Tool/Special . | . . . . . . . . . . . . . . . . . . . . . Unused Backups 19 | . 1 . . . 7 . . . . . 1 . . . . 2 1 . 1 6 Power 1 | . . . . . 1 . . . . . . . . . . . . . . . Propulsion 3 | . . . . . 1 . . . . . . . . . . . . . . 2 Utility 1 | . . . . . . . . . . . . . . . . . . . 1 . Weapon 8 | . 1 . . . 5 . . . . . . . . . . . 1 . . 1 Tool/Special 6 | . . . . . . . . . . . 1 . . . . 2 . . . 3 Average Slot Usage (%) 84 | . 67 64 66 77 91 88 84 80 78 84 88 91 92 91 92 91 91 92 88 88 Engine 1 | . 7 5 4 2 2 . . . . . . . . . . . . . . . Core 1 | . . . . 2 2 3 4 7 4 . . . . . . . . . . . Reactor 1 | . . . . . . . . . 1 3 3 3 3 3 3 3 3 3 3 3 Hover 11 | . 11 17 16 17 16 10 7 7 7 8 11 15 15 15 15 15 14 15 15 5 Flight 2 | . 4 . . . . . . . . . . . . . . . . . . 9 Device 38 | . 13 17 16 25 29 31 37 34 37 42 44 46 50 50 50 49 49 50 49 48 Processor 9 | . 4 5 5 5 8 12 12 11 11 11 11 11 11 11 11 11 11 11 11 11 Protection 7 | . 4 5 7 10 18 18 12 11 11 10 8 6 3 3 3 3 3 3 2 3 Ballistic Gun 1 | . 13 11 5 . . . . . . . . . . . . . . . . . Ballistic Cannon 4 | . . . . 9 10 9 7 7 2 6 7 6 7 5 7 7 6 7 4 2 Peak Build Rating 245 | 7 13 13 38 36 54 109 115 116 145 155 169 176 180 184 184 188 199 187 212 245 Average Rating 132 | 4 11 13 18 30 46 77 110 115 124 148 161 171 176 180 184 183 185 185 200 222 On Entrance 115 | . 7 13 13 22 35 53 109 115 115 145 155 168 174 180 184 184 185 186 187 200 Avg Prop Armor Cover (%) . | . . . . . . . . . . . . . . . . . . . . . Naked Turns . | . . . . . . . . . . . . . . . . . . . . . Heaviest Build 133 | 8 16 16 23 41 51 74 88 88 106 113 113 117 113 113 113 121 121 120 120 133 Greatest Support 157 | 30 30 28 28 68 68 90 90 90 108 129 130 130 130 131 131 131 131 134 157 157 Greatest Overweight (x) . | . . . . . . . . . . . . . . . . . . . . . Average Overweight (x) . | . . . . . . . . . . . . . . . . . . . . . Largest Inventory Capacity 13 | 10 10 10 10 10 10 10 10 10 11 11 11 11 11 11 11 11 11 11 11 13 Average Capacity 11 | 9 10 10 10 10 10 10 10 10 10 11 11 11 11 11 11 11 11 11 11 12 Most Carried 13 | 1 8 3 10 10 10 10 8 9 11 9 11 11 9 11 11 11 11 11 11 13 Average Carried 8 | . 2 2 7 9 9 6 8 8 8 6 8 6 8 9 11 10 10 9 9 10 Final Capacity 13 | 10 10 10 10 10 10 10 10 10 11 11 11 11 11 11 11 11 11 11 11 13 Final Carried 12 | 1 2 3 9 9 5 8 8 8 8 6 10 8 8 11 11 11 11 7 9 12 Class Distribution -------------------- 89% | Wizard-Scout 8% | Wizard-Ninja Dominant Class ---------------- Wizard-Scout | -10/Materials Wizard-Scout | -10/Mines Wizard-Ninja | -10/Subcaves Wizard-Scout | -7/Recycling Wizard-Scout | -7/Scraptown Wizard-Scout | -5/Factory Wizard-Scout | -5/Upper Caves Wizard-Scout | -5/Upper Caves Wizard-Scout | -5/Warlord Wizard-Scout | -4/Proximity Caves Wizard-Scout | -4/Factory Wizard-Scout | -4/Upper Caves Wizard-Scout | -4/Upper Caves Wizard-Scout | -4/Zhirov Wizard-Scout | -3/Proximity Caves Wizard-Scout | -3/Research Wizard-Scout | -3/Quarantine Wizard-Scout | -2/Research Wizard-Scout | -2/Testing Wizard-Scout | -2/Protoforge Resources | -11 -10 -10 -10 -7 -7 -5 -5 -5 -5 -4 -4 -4 -4 -4 -3 -3 -3 -2 -2 -2 ----------- Run | Yrd Mat Min Sub Rec Scr Fac Upp Upp War Pro Fac Upp Upp Zhi Pro Res Qua Res Tes Frg Matter Collected 18703 | 380 598 463 378 225 90 571 313 88 244 421 236 396 99 90 213 626 835 203 874 11360 Remotely 17891 | . 277 455 378 225 90 571 313 88 244 421 236 396 99 90 213 594 835 203 874 11289 Salvage Created 22686 | 148 753 371 499 150 . 530 131 60 202 390 83 85 26 140 150 1035 560 319 634 16420 Parts 1064 | 12 41 22 22 14 . 54 4 1 2 19 4 7 3 . 11 49 42 8 29 720 Haulers Intercepted 3 | . 2 . . . . . . . . . . . . . . . . . 1 . Recyclers Shooed 2 | . 1 1 . . . . . . . . . . . . . . . . . . Parts Field Recycled . | . . . . . . . . . . . . . . . . . . . . . Retrieved Matter . | . . . . . . . . . . . . . . . . . . . . . Parts Self-Destructed 63 | . . . 12 . . . 1 2 . 18 . 14 5 . 11 . . . . . Prevented 2 | . . . . . . . . 2 . . . . . . . . . . . . Parts Restored . | . . . . . . . . . . . . . . . . . . . . . Kills | -11 -10 -10 -10 -7 -7 -5 -5 -5 -5 -4 -4 -4 -4 -4 -3 -3 -3 -2 -2 -2 ------- Run | Yrd Mat Min Sub Rec Scr Fac Upp Upp War Pro Fac Upp Upp Zhi Pro Res Qua Res Tes Frg Combat Hostiles Destroyed 414 | . 15 2 18 4 . 20 5 2 5 17 5 5 3 . 8 14 13 2 13 263 Guns 36 | . 15 2 18 1 . . . . . . . . . . . . . . . . Cannons 367 | . . . . 3 . 20 5 2 5 17 5 5 3 . 8 14 13 2 13 252 Classes Destroyed 34 | 2 4 2 3 . . 4 1 1 3 3 1 . . . . . 1 . 2 7 Worker 15 | . . 4 . . . 3 . . . . . . . . . 3 . 1 . 4 Builder 22 | . . 2 . 2 . 1 . . . . . . . . . 8 3 . . 6 Tunneler 7 | 4 . 3 . . . . . . . . . . . . . . . . . . Hauler 3 | . 2 . . . . . . . . . . . . . . . . . 1 . Recycler 11 | 1 3 2 . . . . . . . . . . . . . 3 . 2 . . Carrier 1 | . . . . . . . . . . . . . . . . . . . . 1 Mechanic 5 | . . . . . . . . . . . . . . . . . . . . 5 Operator 8 | . . . . . . . . . . . 1 . . . . . 2 . 1 4 Drone 7 | . . . . . . . . . . 1 . . . . 2 . . . . 4 Turret 2 | . . . 2 . . . . . . . . . . . . . . . . . Watcher 13 | . 3 . . . . 2 . . . . . . . . . . 3 . . 5 Swarmer 70 | . 9 2 7 . . 5 . . . 10 4 . 3 . . . 7 . 4 19 Cutter 1 | . . . . . . 1 . . . . . . . . . . . . . . Saboteur 7 | . . . . . . . . . . . . . . . . . . . . 7 Grunt 102 | . 6 . 3 . . 5 3 1 1 . . 3 . . 3 5 . . 5 67 Brawler 26 | . . . . . . . . . . 2 . . . . . . . . . 24 Duelist 13 | . . . . . . 2 . . . . . . . . 1 . . . . 10 Protector 12 | . . . . . . . . . 1 . . . . . . . . . . 11 Researcher 4 | . . . . . . . . . . . . . . . . . . . 1 3 Sentry 30 | . . . 1 4 . 2 1 . . 1 1 1 . . . 3 . 1 . 15 Demolisher 2 | . . . . . . . . . 2 . . . . . . . . . . . Specialist 9 | . . . . . . . . . 1 . . . . . . . . . . 8 Hunter 11 | . . . . . . . . 1 . . . . . . 2 . . . . 8 Programmer 32 | . . . . . . 4 . . . 2 . . . . . 5 5 . 3 13 Heavy 3 | . . . . . . 1 . . . . . . . . . 1 . 1 . . Q-Series 1 | . . . . . . . . . . . . . . . . . . . . 1 Behemoth 2 | . . . . . . . . . . 1 . . . . . . . . . 1 Hotshot 8 | . . . . . . . . . . . . . . . . . . . . 8 Decapitator 19 | . . . . . . . . . . . . . . . . . . . . 19 Immortal 5 | . . . . . . . . . . . . . . . . . . . . 5 Overlord 1 | . . . . . . . . . . . . . . . . . . . . 1 Striker 11 | . . . . . . . . . . . . . . . . . . . . 11 Executioner 17 | . . . . . . . . . . . . . . . . . . . . 17 Alpha 7 5 | . . . . . . . . . . . . . . . . . 1 . . 4 Fortress 1 | . . . . . . . . . . . . . . . . . . . 1 . V-Series 11 | . . . . . . . . . . . . . . . . . . . . 11 Subdweller 7 | . . . 7 . . . . . . . . . . . . . . . . . Mutant 2 | . . . . . . . 1 . . . . 1 . . . . . . . . Best Kill Streak 38 | 3 7 8 6 3 . 7 4 1 3 5 4 3 3 . 8 19 4 2 8 38 Combat Bots Only 36 | . 5 2 5 3 . 7 4 1 3 5 4 3 3 . 8 7 3 1 8 36 Max Kills in Single Turn 6 | 1 2 1 2 2 . 2 1 1 1 2 1 1 1 . 1 2 2 2 2 6 Gunslinging 1 | . 1 . . . . . . . . . . . . . . . . . . . Exploded . | . . . . . . . . . . . . . . . . . . . . . Melee . | . . . . . . . . . . . . . . . . . . . . . Uniques/NPCs Destroyed . | . . . . . . . . . . . . . . . . . . . . . Combat | -11 -10 -10 -10 -7 -7 -5 -5 -5 -5 -4 -4 -4 -4 -4 -3 -3 -3 -2 -2 -2 -------- Run | Yrd Mat Min Sub Rec Scr Fac Upp Upp War Pro Fac Upp Upp Zhi Pro Res Qua Res Tes Frg Hostile Shots Fired 1168 | . 57 6 106 108 . 53 20 13 7 46 74 15 8 . 27 44 45 16 82 441 Missed 558 | . 19 2 40 51 . 20 10 7 3 21 39 5 6 . 14 24 23 9 42 223 Hits 610 | . 38 4 66 57 . 33 10 6 4 25 35 10 2 . 13 20 22 7 40 218 Melee 15 | . . . . . . 1 . . . 2 . . . . . . . . . 12 Projectile 595 | . 38 4 66 57 . 32 10 6 4 23 35 10 2 . 13 20 22 7 40 206 AOE 12 | . . . 3 . . 1 . . 3 . . . . . . . . . . 5 Critical Strikes 39 | . 1 . 4 . . . . . . 3 1 1 . . . 1 . . 1 27 Actively Blocked 30 | . . . . . . . . . . . . 1 . . . 1 . . 1 27 Part Disruptions 1 | . . . . . . . . . . . . 1 . . . . . . . . Actively Blocked 1 | . . . . . . . . . . . . 1 . . . . . . . . Damage Taken 7590 | . 263 28 787 326 . 555 142 84 122 322 375 125 17 . 135 346 174 142 508 3139 Core 4795 | . 197 21 502 231 . 310 82 50 57 161 222 80 9 . 88 184 106 102 322 2071 Absorbed by Shields 4371 | . . . . . . . . . 39 94 108 38 5 . 42 179 186 143 492 3045 Redirected to Core 4091 | . 168 13 386 191 . 274 68 32 57 153 222 80 9 . 76 167 79 92 300 1724 Redirected to Shielding 129 | . . . . . . 52 11 11 14 41 . . . . . . . . . . Ignored by Resistances 3075 | . 86 8 226 102 . 101 50 24 46 127 201 61 11 . 69 174 91 81 251 1366 Regen/Repaired (Parts) 42 | . . . . . . . . . 42 . . . . . . . . . . . Core Remaining (%) 91 | 100 . . . . 74 . . . . 100 . . . . 100 . 95 . . 78 Volleys Fired 861 | 12 55 20 49 13 . 49 13 6 13 32 23 13 4 5 17 42 47 13 60 375 Largest 2 | 1 2 2 1 2 . 2 2 2 2 2 2 2 2 1 2 2 2 2 2 2 Hottest 280 | 20 40 40 30 74 . 88 91 91 88 91 91 98 98 20 98 102 102 102 116 280 Shots Fired 1279 | 12 88 40 49 27 . 98 24 12 26 64 43 25 8 5 34 84 94 26 68 452 Gun 198 | 12 88 40 49 9 . . . . . . . . . . . . . . . . Cannon 1069 | . . . . 18 . 98 24 12 26 64 43 25 8 . 34 84 94 26 68 445 Launcher 1 | . . . . . . . . . . . . . . . . . . . . 1 Special 11 | . . . . . . . . . . . . . . 5 . . . . . 6 Kinetic 1107 | 12 88 40 49 22 . 98 24 12 26 64 43 25 8 . 34 84 94 26 68 290 Thermal 165 | . . . . 5 . . . . . . . . . 4 . . . . . 156 Explosive . | . . . . . . . . . . . . . . . . . . . . . Electromagnetic . | . . . . . . . . . . . . . . . . . . . . . Robot Hit Streak 78 | 8 68 43 48 52 . 37 10 22 35 22 24 25 19 24 38 22 37 29 40 78 Robot Miss Streak 5 | 1 1 . 2 1 . 1 1 . 1 2 . 1 . . 1 2 1 1 2 5 Penetration Max 3 | . . . . . . . . . . . . 1 . . . 1 . 1 1 3 Secondary Targets 3 | . 3 . . . . . . . . . . . . . . . . . . . Max Gunslinging Chain 1 | . 1 . . . . . . . . . . . . . . . . . . . Autonomous 5 | . . . . 5 . . . . . . . . . . . . . . . . Shots Hit Robots 1017 | 11 75 33 55 23 . 64 19 12 25 49 22 17 5 5 27 63 54 19 50 389 Core Hits 1354 | 5 31 14 37 27 . 38 9 4 16 21 9 10 3 4 12 32 23 8 37 1014 Critical Kills 243 | . . . . . . . . . . . . . . . . . . . 9 234 Critical Parts Destroyed 268 | . . . . . . . . . . . . . . . . . . . 4 264 Critical Strikes 706 | . . . . . . 6 3 4 2 5 4 4 2 . 4 22 10 1 18 621 Meltdown 11 | . . . . . . . . . . . . . . . . . . . . 11 Destroy 616 | . . . . . . . . . . . . . . . . . . . 13 603 Blast 79 | . . . . . . 6 3 4 2 5 4 4 2 . 4 22 10 1 5 7 Melee Attacks 46 | . 1 . 45 . . . . . . . . . . . . . . . . . Impact . | . . . . . . . . . . . . . . . . . . . . . Slashing 46 | . 1 . 45 . . . . . . . . . . . . . . . . . Piercing . | . . . . . . . . . . . . . . . . . . . . . Sneak Attacks . | . . . . . . . . . . . . . . . . . . . . . Combat Hostiles . | . . . . . . . . . . . . . . . . . . . . . Follow-up Attacks . | . . . . . . . . . . . . . . . . . . . . . Damage Inflicted 53130 | 156 1114 497 1320 721 . 2393 792 413 966 2124 1019 909 188 60 1205 3577 2618 1013 4820 27225 Guns 3058 | 156 1114 497 1145 146 . . . . . . . . . . . . . . . . Cannons 45301 | . . . . 568 . 2393 792 413 966 2124 964 909 188 . 1205 3577 2618 1013 4820 22751 Explosions 4529 | . . . . . . . . . . . 55 . . . . . . . . 4474 Melee 175 | . . . 175 . . . . . . . . . . . . . . . . . Ramming 7 | . . . . 7 . . . . . . . . . . . . . . . . Kinetic 38854 | 156 1114 497 1145 651 . 2393 792 413 966 2124 964 909 188 . 1205 3577 2618 1013 4820 13309 Thermal 14094 | . . . . 63 . . . . . . 55 . . 60 . . . . . 13916 Explosive . | . . . . . . . . . . . . . . . . . . . . . Electromagnetic . | . . . . . . . . . . . . . . . . . . . . . Impact . | . . . . . . . . . . . . . . . . . . . . . Slashing 175 | . . . 175 . . . . . . . . . . . . . . . . . Piercing . | . . . . . . . . . . . . . . . . . . . . . Highest Corruption 2 | . . . . . . 1 1 1 1 2 . 2 2 . . 1 . . . . Average Corruption 1 | . . . . . . 1 1 1 1 2 . 2 1 . . 1 . . . . Corruption Purged 3 | . . . . . . . . . . . . . 2 . . 1 . . . . Corruption Blocked . | . . . . . . . . . . . . . . . . . . . . . Effects 8 | . . . . . . 1 3 . . . . 2 2 . . . . . . . Message Errors 1 | . . . . . . . . . . . . 1 . . . . . . . . Matter Fused 3 | . . . . . . . 1 . . . . . 2 . . . . . . . Heat Flow Errors 2 | . . . . . . . 1 . . . . 1 . . . . . . . . Energy Discharges 2 | . . . . . . 1 1 . . . . . . . . . . . . . Overload Shots . | . . . . . . . . . . . . . . . . . . . . . Overflow Damage 2631 | . . . . . . 39 . . . 57 22 12 . . 28 262 129 . 819 1263 Projectiles 2323 | . . . . . . 39 . . . 57 22 12 . . 28 262 129 . 819 955 Explosions 308 | . . . . . . . . . . . . . . . . . . . . 308 Melee . | . . . . . . . . . . . . . . . . . . . . . Knockbacks 224 | . . . . 6 . 9 1 4 1 2 5 4 . . 7 10 19 . 8 148 Impact . | . . . . . . . . . . . . . . . . . . . . . Kinetic 214 | . . . . 6 . 9 1 4 1 2 4 4 . . 7 9 19 . 8 140 Secondary 10 | . . . . . . . . . . . 1 . . . . 1 . . . 8 Self-Inflicted Damage 56 | . . . . 3 . . . . . . 53 . . . . . . . . . Shots 1 | . . . . . . . . . . . 1 . . . . . . . . . Rammed 1 | . . . . 1 . . . . . . . . . . . . . . . . Targets Rammed 2 | . 1 . . 1 . . . . . . . . . . . . . . . . Kicked 1 | . 1 . . . . . . . . . . . . . . . . . . . Crushed . | . . . . . . . . . . . . . . . . . . . . . Highest Temperature 289 | . . . 192 182 . 8 255 . . . . 166 . . . . . . . 289 Average Temperature 65 | . . . 106 88 . 3 130 . . . . 93 . . . . . . . 129 Received Heat Transfer 1713 | . 84 . 792 138 . 126 57 . 14 28 91 65 . . 45 45 . 8 12 208 Siege Activations . | . . . . . . . . . . . . . . . . . . . . . Martial Activations . | . . . . . . . . . . . . . . . . . . . . . Shielding Activations . | . . . . . . . . . . . . . . . . . . . . . Robots Disrupted . | . . . . . . . . . . . . . . . . . . . . . Combat Hostiles . | . . . . . . . . . . . . . . . . . . . . . Robots Corrupted . | . . . . . . . . . . . . . . . . . . . . . Combat Hostiles . | . . . . . . . . . . . . . . . . . . . . . Parts Fried . | . . . . . . . . . . . . . . . . . . . . . Impact Corruptions 2 | . . . . . . . . . . . . . . . . . . . . 2 Robots Melted 11 | . . . . . . . . . . . . . . . . . . . . 11 Combat Hostiles 10 | . . . . . . . . . . . . . . . . . . . . 10 Parts Melted 31 | . . . 2 1 . . . . . . . . . . . . . . . 28 Heat Transferred 6023 | . . . . 225 . . . . . . 100 . . 36 . . . . . 5662 Parts Sabotaged . | . . . . . . . . . . . . . . . . . . . . . Parts Stolen . | . . . . . . . . . . . . . . . . . . . . . Parts Stripped . | . . . . . . . . . . . . . . . . . . . . . Power Chain Reactions . | . . . . . . . . . . . . . . . . . . . . . Alert | -11 -10 -10 -10 -7 -7 -5 -5 -5 -5 -4 -4 -4 -4 -4 -3 -3 -3 -2 -2 -2 ------- Run | Yrd Mat Min Sub Rec Scr Fac Upp Upp War Pro Fac Upp Upp Zhi Pro Res Qua Res Tes Frg Maximum Alert Level 5 | . 1 . . . . 1 . . . . 2 . . . . 1 1 . 2 5 Low Security (%) 53 | 100 95 100 . 100 . 98 . . . . 58 . . . . 69 96 100 55 1 Level 1 10 | . 4 . . . . 1 . . . . 37 . . . . 30 3 . 40 9 Level 2 1 | . . . . . . . . . . . 4 . . . . . . . 4 1 Level 3 . | . . . . . . . . . . . . . . . . . . . . . Level 4 . | . . . . . . . . . . . . . . . . . . . . . Level 5 34 | . . . . . . . . . . . . . . . . . . . . 86 High Security . | . . . . . . . . . . . . . . . . . . . . . Max Security . | . . . . . . . . . . . . . . . . . . . . . Peak Influence 7958 | 10 220 40 . 116 . 207 . . . . 433 . . . . 232 221 114 481 7958 Initial 428 | . . . . 96 . . . . . . 428 . . . . 74 42 114 26 211 Average 1577 | 2 81 8 . 23 . 104 . . . . 145 . . . . 98 81 31 147 3824 Influence Increases 14670 | 25 416 96 292 90 . 591 90 50 85 365 817 215 70 . 150 485 565 168 1131 8969 Destroy 0b10 Robot/C 8100 | . 300 40 260 80 . 400 80 40 80 320 100 180 60 . 120 280 260 40 380 5080 Destroy 0b10 Robot/NC 535 | 25 40 55 . 10 . 30 . . 5 5 5 . . . 10 70 40 15 15 210 Destroy Leader 1132 | . 60 . 20 . . 74 10 10 . 40 20 20 10 . 20 80 46 20 52 650 Allied During Kill 77 | . . 1 12 . . . . . . . . . . . . . . 3 . 61 Trap Triggered on 0b10 30 | . . . . . . . . . . . 10 . . . . . . . 20 . Disable Machine 795 | . 15 . . . . 30 . . . . 60 . . . . . 105 . 75 510 Destroy Structure 2421 | . 1 . . . . 42 . . . . 112 . . . . 40 84 30 69 2043 Advance Influence 300 | . . . . . . . . . . . 300 . . . . . . . . . Partial Spotted 120 | . . . . . . 15 . . . . 45 . . . . 15 . . . 45 Lose Combat Pursuer 660 | . . . . . . . . . . . 165 15 . . . . 30 60 120 270 Miscellaneous 500 | . . . . . . . . . . . . . . . . . . . 400 100 Influence Decreases 6721 | 25 416 96 92 290 . 483 178 70 70 175 1007 105 165 30 40 520 435 326 801 1397 Entered New Map 649 | . . . . 104 . . 41 4 . 15 77 6 25 30 . 36 33 91 21 166 Time Decay 2901 | 25 204 96 72 100 . 286 137 66 70 150 140 99 80 . 40 148 266 55 176 691 Lost Part 30 | . . . . . . . . . . 10 . . . . . . . . 10 10 Lost Ally 205 | . . . 20 . . . . . . . 20 . 60 . . 5 . . 20 80 Purge Threat 2936 | . 212 . . 86 . 197 . . . . 770 . . . . 331 136 180 574 450 Squads Dispatched 55 | . 2 . . . . 7 . . . . 7 . . . . 4 4 . 5 26 Investigation 16 | . 1 . . . . . . . . . 6 . . . . 1 1 . 1 6 Extermination 12 | . . . . . . 2 . . . . 1 . . . . 1 3 . 2 3 Reinforcement 12 | . 1 . . . . 5 . . . . . . . . . 2 . . 2 2 Assault 15 | . . . . . . . . . . . . . . . . . . . . 15 Garrison . | . . . . . . . . . . . . . . . . . . . . . Intercept . | . . . . . . . . . . . . . . . . . . . . . Searches Triggered . | . . . . . . . . . . . . . . . . . . . . . Construction Impeded . | . . . . . . . . . . . . . . . . . . . . . Haulers Reinforced . | . . . . . . . . . . . . . . . . . . . . . Active Scanning Responses . | . . . . . . . . . . . . . . . . . . . . . Cargo Convoy Interrupts . | . . . . . . . . . . . . . . . . . . . . . Stealth | -11 -10 -10 -10 -7 -7 -5 -5 -5 -5 -4 -4 -4 -4 -4 -3 -3 -3 -2 -2 -2 --------- Run | Yrd Mat Min Sub Rec Scr Fac Upp Upp War Pro Fac Upp Upp Zhi Pro Res Qua Res Tes Frg Distress Signals 8 | . 3 . . . . 1 . . . . 1 . . . 1 . . . . 2 Communications Jammed 41 | . . . . . . . . . 12 1 12 . . . . . . 3 10 3 Distress Signals 37 | . . . . . . . . . 12 . 12 . . . . . . . 10 3 Times Spotted 533 | . 21 3 54 4 . 21 5 2 18 20 24 6 4 . 8 16 17 6 29 275 Peak Tracking Total 13 | . 6 3 6 3 . 3 3 1 6 6 7 4 2 . 2 3 4 4 13 13 Tactical Retreats 34 | . 1 . 6 . . 1 . . 3 . 6 1 . . . . 2 1 2 11 ECM-based Alert Blocks 42 | . 2 . 33 . . 1 . . 6 . . . . . . . . . . . Traps | -11 -10 -10 -10 -7 -7 -5 -5 -5 -5 -4 -4 -4 -4 -4 -3 -3 -3 -2 -2 -2 ------- Run | Yrd Mat Min Sub Rec Scr Fac Upp Upp War Pro Fac Upp Upp Zhi Pro Res Qua Res Tes Frg Traps Triggered 3 | . 1 . . . . 1 . . . . . . . . . . . . . 1 Indirectly . | . . . . . . . . . . . . . . . . . . . . . Trap Hack Attempts . | . . . . . . . . . . . . . . . . . . . . . Triggered . | . . . . . . . . . . . . . . . . . . . . . Disarmed 9 | . 3 . . . . . . . . . 4 . . . . . 2 . . . Reprogrammed 18 | . . . . . . . . . . . 3 . . . . . 1 . 14 . Reused 3 | . . . . . . . . . . . 1 . . . . . . . 2 . Traps Extracted . | . . . . . . . . . . . . . . . . . . . . . Installed . | . . . . . . . . . . . . . . . . . . . . . Triggered 3 | . . . . . . . . . . . 1 . . . . . . . 2 . Machines | -11 -10 -10 -10 -7 -7 -5 -5 -5 -5 -4 -4 -4 -4 -4 -3 -3 -3 -2 -2 -2 ---------- Run | Yrd Mat Min Sub Rec Scr Fac Upp Upp War Pro Fac Upp Upp Zhi Pro Res Qua Res Tes Frg Machines Disabled 79 | . 1 . 1 . . 2 1 . 1 . 4 1 . . . . 8 . 6 54 Max in Single Turn 15 | . 1 . 1 . . 1 1 . 1 . 4 1 . . . . 1 . 1 15 Garrison Access 4 | . . . . . . . . . . . 1 . . . . . 1 1 . 1 Machines Repaired . | . . . . . . . . . . . . . . . . . . . . . Machines Dismantled 1 | . . . . . . . . . 1 . . . . . . . . . . . Machines Sabotaged . | . . . . . . . . . . . . . . . . . . . . . Overloaded Fab Kills . | . . . . . . . . . . . . . . . . . . . . . Hacking | -11 -10 -10 -10 -7 -7 -5 -5 -5 -5 -4 -4 -4 -4 -4 -3 -3 -3 -2 -2 -2 --------- Run | Yrd Mat Min Sub Rec Scr Fac Upp Upp War Pro Fac Upp Upp Zhi Pro Res Qua Res Tes Frg Machines Accessed 97 | . 7 . 2 10 4 6 . . 2 . 12 1 1 6 . 7 16 5 7 11 Terminals 48 | . 5 . . 5 . 2 . . . . 5 . . . . 5 14 4 5 3 Fabricators 9 | . . . . . . 2 . . . . 1 . . . . 1 . . 1 4 Repair Stations . | . . . . . . . . . . . . . . . . . . . . . Recycling Units 18 | . 2 . . 5 . 2 . . . . 5 . . . . 1 . . . 3 Scanalyzers 2 | . . . . . . . . . . . . . . . . . 1 . 1 . Garrison Access 4 | . . . . . . . . . . . 1 . . . . . 1 1 . 1 Total Hacks 288 | . 15 . 13 18 29 27 . . 2 . 31 1 1 19 . 21 29 23 28 31 Successful 279 | . 15 . 13 18 29 27 . . 2 . 31 1 1 19 . 21 29 22 23 28 Failed 8 | . . . . . . . . . . . . . . . . . . . 5 3 Catastrophic . | . . . . . . . . . . . . . . . . . . . . . Database Lockouts 1 | . . . . . . . . . . . . . . . . . . 1 . . Manual 138 | . 10 . . 12 . 25 . . . . 22 1 . . . 11 10 15 9 23 Terminals 167 | . 11 . . 13 . 23 . . . . 20 . . . . 18 26 22 23 11 Fabricators 13 | . . . . . . 2 . . . . 1 . . . . 1 . . 1 8 Repair Stations . | . . . . . . . . . . . . . . . . . . . . . Recycling Units 33 | . 4 . . 5 . 2 . . . . 9 . . . . 2 . . . 11 Scanalyzers 6 | . . . . . . . . . . . . . . . . . 2 . 4 . Garrison Access 4 | . . . . . . . . . . . 1 . . . . . 1 1 . 1 Terminal Hacks 197 | . 6 . 13 8 29 23 . . 2 . 17 1 1 19 . 11 20 21 18 8 Record 55 | . . . 12 . 29 . . . . . . . . 7 . . 6 1 . . Part Schematic 5 | . . . . . . . . . . . . . . 4 . . . 1 . . Robot Analysis 5 | . . . . . . . . . . . . . . 4 . . 1 . . . Prototype ID Bank 41 | . . . . 1 . 14 . . . . 2 . . 4 . 2 2 15 1 . Open Door 6 | . . . . . . . . . 2 . . 1 1 . . . 2 . . . Level Access Points 1 | . . . . . . . . . . . . . . . . . 1 . . . Branch Access Points 5 | . . . . . . 1 . . . . 1 . . . . 1 1 1 . . Machine Index 6 | . . . . 1 . . . . . . 1 . . . . 1 1 . . 2 Terminal Index 2 | . 2 . . . . . . . . . . . . . . . . . . . Recycling Unit Index 1 | . . . . . . . . . . . 1 . . . . . . . . . Unreport Threat 40 | . 2 . . 3 . 3 . . . . 8 . . . . 6 2 3 9 4 Disarm Traps 5 | . 1 . . . . . . . . . 2 . . . . . 1 . 1 . Reprogram Traps 7 | . . . . . . . . . . . 2 . . . . . 2 . 3 . Patrol Status 1 | . . . . 1 . . . . . . . . . . . . . . . . Recall Investigation 1 | . 1 . . . . . . . . . . . . . . . . . . . Recall Extermination 4 | . . . . . . 2 . . . . . . . . . . 1 . 1 . Recall Reinforcements 5 | . . . . . . 3 . . . . . . . . . . . . 1 1 Registered Components 1 | . . . . 1 . . . . . . . . . . . . . . . . Registered Prototypes 3 | . . . . 1 . . . . . . . . . . . 1 . . 1 . Proto ID Catalog 2 | . . . 1 . . . . . . . . . . . . . . . . 1 Protovariant Controls 1 | . . . . . . . . . . . . . . . . . . . 1 . Fabricator Hacks 2 | . . . . . . . . . . . . . . . . . . . . 2 Network Status 1 | . . . . . . . . . . . . . . . . . . . . 1 Build 1 | . . . . . . . . . . . . . . . . . . . . 1 Repair Station Hacks . | . . . . . . . . . . . . . . . . . . . . . Recycling Unit Hacks 17 | . 2 . . 5 . 2 . . . . 4 . . . . 1 . . . 3 Retrieve Components 17 | . 2 . . 5 . 2 . . . . 4 . . . . 1 . . . 3 Scanalyzer 6 | . . . . . . . . . . . . . . . . . 2 . 4 . Retrieve Study 6 | . . . . . . . . . . . . . . . . . 2 . 4 . Garrison Access Hacks 4 | . . . . . . . . . . . 1 . . . . . 1 1 . 1 Seal Access 4 | . . . . . . . . . . . 1 . . . . . 1 1 . 1 Unauthorized Hacks 53 | . 7 . . 5 . 2 . . . . 9 . . . . 9 6 . 1 14 Terminals 26 | . 5 . . 5 . . . . . . 3 . . . . 7 6 . . . Assimilate 2 | . . . . . . . . . . . . . . . . 2 . . . . Skim 24 | . 5 . . 5 . . . . . . 3 . . . . 5 6 . . . Fabricators 11 | . . . . . . 2 . . . . 1 . . . . 1 . . 1 6 Prioritize 1 | . . . . . . . . . . . . . . . . . . . . 1 Liberate 1 | . . . . . . . . . . . . . . . . . . . . 1 Fabnet 9 | . . . . . . 2 . . . . 1 . . . . 1 . . 1 4 Repair Stations . | . . . . . . . . . . . . . . . . . . . . . Recycling Units 16 | . 2 . . . . . . . . . 5 . . . . 1 . . . 8 Reject 3 | . 1 . . . . . . . . . . . . . . . . . . 2 Mask 4 | . 1 . . . . . . . . . . . . . . . . . . 3 Fedlink 9 | . . . . . . . . . . . 5 . . . . 1 . . . 3 Scanalyzers . | . . . . . . . . . . . . . . . . . . . . . Garrison Access . | . . . . . . . . . . . . . . . . . . . . . Data Cores Recovered 4 | . . . . . . . . . . . 1 . . . . . 2 . . 1 Used 3 | . . . . . . . . . . . 1 . . . . . 2 . . . Hacking Detections 15 | . 1 . . . . 2 . . . . 1 . . . . 1 4 2 3 1 Full Trace Events 1 | . . . . . . . . . . . . . . . . . . . 1 . Feedback Events . | . . . . . . . . . . . . . . . . . . . . . Feedback Blocked . | . . . . . . . . . . . . . . . . . . . . . Robot Schematics Acquired 2 | . . . . . . . . . . . . . . . . . . . . 2 Robots Built 3 | . . . . . . . . . . . . . . . . . . . . 3 Authchips . | . . . . . . . . . . . . . . . . . . . . . Time 37 | . . . . . . . . . . . . . . . . . . . . 37 Total Robot Build Rating 27 | . . . . . . . . . . . . . . . . . . . . 27 Part Schematics Acquired 13 | . . . . . . . . . . . . . . 4 . . . 1 . 8 Parts Built . | . . . . . . . . . . . . . . . . . . . . . Authchips . | . . . . . . . . . . . . . . . . . . . . . Time . | . . . . . . . . . . . . . . . . . . . . . Total Part Build Rating . | . . . . . . . . . . . . . . . . . . . . . Part Studies Acquired 6 | . . . . . . . . . . . . . . . . . 2 . 4 . Parts Repaired . | . . . . . . . . . . . . . . . . . . . . . Time . | . . . . . . . . . . . . . . . . . . . . . Parts Recycled . | . . . . . . . . . . . . . . . . . . . . . Recycled Matter . | . . . . . . . . . . . . . . . . . . . . . Retrieved Matter . | . . . . . . . . . . . . . . . . . . . . . Retrieved Components 44 | . 12 . . 10 . 2 . . . . 11 . . . . 3 . . . 6 Parts Scanalyzed . | . . . . . . . . . . . . . . . . . . . . . Part Schematics Acquired . | . . . . . . . . . . . . . . . . . . . . . Parts Damaged . | . . . . . . . . . . . . . . . . . . . . . Bothacking | -11 -10 -10 -10 -7 -7 -5 -5 -5 -5 -4 -4 -4 -4 -4 -3 -3 -3 -2 -2 -2 ------------ Run | Yrd Mat Min Sub Rec Scr Fac Upp Upp War Pro Fac Upp Upp Zhi Pro Res Qua Res Tes Frg Used RIF Installer . | . . . . . . . . . . . . . . . . . . . . . Robots Hacked 12 | . . . . . . . . . . . 2 . . . . . . . . 10 Non-combat . | . . . . . . . . . . . . . . . . . . . . . Combat 12 | . . . . . . . . . . . 2 . . . . . . . . 10 Robot Hacks Applied 6 | . . . . . . . . . . . . . . . . . . . . 6 parse_system 6 | . . . . . . . . . . . . . . . . . . . . 6 Relay Couplers Released . | . . . . . . . . . . . . . . . . . . . . . Fabnet Peak Effective % 6 | . . . . . . . . . . 6 6 6 6 6 5 5 5 4 4 4 Autooverrided 6 | . . . . . . . . . . . 2 . . . . . . . . 4 Robots Rewired 4 | . . . . . . . . . . . . 4 . . . . . . . . Allies Hacked . | . . . . . . . . . . . . . . . . . . . . . Hacks Repelled . | . . . . . . . . . . . . . . . . . . . . . Allies | -11 -10 -10 -10 -7 -7 -5 -5 -5 -5 -4 -4 -4 -4 -4 -3 -3 -3 -2 -2 -2 -------- Run | Yrd Mat Min Sub Rec Scr Fac Upp Upp War Pro Fac Upp Upp Zhi Pro Res Qua Res Tes Frg Total Allies 20 | . . 5 . . . . . . . . 2 4 . . . 1 . 1 . 7 Largest Group 5 | . . 5 5 . . . . . . . 1 4 4 . . 1 . 1 1 3 Highest-Rated Group 188 | . . 86 90 . . . . . . . 56 188 188 . . 26 . 52 52 177 Highest-Rated Ally 69 | . . 31 31 . . . . . . . 56 47 47 . . 26 . 52 52 69 Initial UFD Resources 76 | . . . . . . 38 38 38 38 42 42 62 62 62 64 64 74 76 76 76 Total Orders . | . . . . . . . . . . . . . . . . . . . . . Ally Attacks 132 | . . . 47 . . . . . . . 3 24 7 . . . . . 35 16 Total Damage 3870 | . . . 660 . . . . . . . 115 705 176 . . . . . 1232 982 Kills 20 | . . . 5 . . . . . . . . 5 1 . . . . . 6 3 Allies Corrupted 1 | . . . . . . . . . . . . . . . . . . . 1 . Allies Melted . | . . . . . . . . . . . . . . . . . . . . . Intel | -11 -10 -10 -10 -7 -7 -5 -5 -5 -5 -4 -4 -4 -4 -4 -3 -3 -3 -2 -2 -2 ------- Run | Yrd Mat Min Sub Rec Scr Fac Upp Upp War Pro Fac Upp Upp Zhi Pro Res Qua Res Tes Frg Active Infowar (turns) 10813 | 32 564 332 975 436 772 744 358 204 493 311 368 324 175 107 129 364 702 170 437 2816 Optics 3 | . . . . . . . . . . . . . . . . . . . 2 1 Terrain 10813 | 32 564 332 975 436 772 744 358 204 493 311 368 324 175 107 129 364 702 170 437 2816 Structural 2 | . . . . . . . . . . . . . . . . . . . . 2 Traps 7187 | . . . . . . 231 358 204 493 311 368 324 175 107 129 364 702 170 435 2816 Machine Analysis 1 | . . . . . . . . . . . . . . . . . . . . 1 Triangulation 1772 | . . . . . . 32 358 204 493 311 368 6 . . . . . . . . Jamming 6576 | . . . . . 357 744 358 204 493 311 368 324 175 107 129 364 699 170 437 1336 ECM 4776 | . 338 332 975 436 772 744 358 204 493 123 . . . . . . . . . 1 Robot Analysis Total 5 | . . . . . . . . . . . . . . 4 . . 1 . . . Derelict Logs Recovered 11 | . . . 1 . . . 3 1 . 3 . 1 2 . . . . . . . Drone Launches . | . . . . . . . . . . . . . . . . . . . . . Drone Recoveries . | . . . . . . . . . . . . . . . . . . . . . Exploration | -11 -10 -10 -10 -7 -7 -5 -5 -5 -5 -4 -4 -4 -4 -4 -3 -3 -3 -2 -2 -2 ------------- Run | Yrd Mat Min Sub Rec Scr Fac Upp Upp War Pro Fac Upp Upp Zhi Pro Res Qua Res Tes Frg Turns Passed 10899 | 119 564 332 975 436 772 744 358 204 493 311 368 324 175 107 129 364 702 170 437 2815 Spaces Moved 16125 | 57 651 374 1114 697 1369 745 547 274 629 386 557 535 347 194 191 500 1320 285 750 4603 Core 12 | 12 . . . . . . . . . . . . . . . . . . . . Treads . | . . . . . . . . . . . . . . . . . . . . . Legs 86 | 45 41 . . . . . . . . . . . . . . . . . . . Wheels . | . . . . . . . . . . . . . . . . . . . . . Hover 12359 | . 533 374 1114 697 1369 745 547 274 629 386 557 535 347 194 191 500 1320 285 750 1012 Flight 3668 | . 77 . . . . . . . . . . . . . . . . . . 3591 Fastest Speed 16 | 50 31 52 52 52 52 52 56 56 51 48 40 40 40 35 38 38 38 35 16 16 Average Speed 39 | 105 53 52 52 52 52 55 56 56 54 49 46 40 40 39 38 38 38 37 34 21 Slowest Speed 120 | 120 120 52 52 52 52 56 56 56 56 51 48 40 40 40 38 38 38 38 35 35 Overloaded Moves 213 | . . . . . . . . . . . . . . . . . . . 38 175 Propulsion Burnouts . | . . . . . . . . . . . . . . . . . . . . . Robots Hopped 16 | . . . . . . . . . . . . . . . . . . . . 16 Potential Cave-ins 3 | . . . . . . 2 . . . . . . . . . . . . . 1 Cave-ins Triggered . | . . . . . . . . . . . . . . . . . . . . . Exploration Rate (%) 64 | 3 87 92 81 99 91 27 81 53 84 80 30 78 67 65 50 13 93 11 77 82 Regions Visited 20 Branch Regions 15 Pre-discovered Areas 13 | . . . 1 . 5 . 2 . . . 1 . 1 3 . . . . . . Known Exits Taken 19 | . 1 1 1 1 1 1 1 1 1 1 1 1 1 1 1 1 1 1 1 . Unknown Exits Taken 1 | 1 . . . . . . . . . . . . . . . . . . . . Scrap Searched 23 | . . 1 5 . 5 . 3 5 . . . 2 2 . . . . . . . Spaces Dug 47 | . . . 1 . . 12 1 . . 2 12 1 . . . 3 7 2 6 . Terrain Destroyed 901 | . . . 1 . . 25 5 . . 15 61 8 5 . 12 16 45 8 14 686 Melee 1 | . . . 1 . . . . . . . . . . . . . . . . . Projectile 268 | . . . . . . 25 5 . . 15 24 8 5 . 12 16 45 8 12 93 AOE 532 | . . . . . . . . . . . 37 . . . . . . . . 495 Terrain Rammed . | . . . . . . . . . . . . . . . . . . . . . Walls Destroyed . | . . . . . . . . . . . . . . . . . . . . . Machines Disabled . | . . . . . . . . . . . . . . . . . . . . . Actions | -11 -10 -10 -10 -7 -7 -5 -5 -5 -5 -4 -4 -4 -4 -4 -3 -3 -3 -2 -2 -2 --------- Run | Yrd Mat Min Sub Rec Scr Fac Upp Upp War Pro Fac Upp Upp Zhi Pro Res Qua Res Tes Frg Total 19405 | 101 775 471 1376 749 1432 982 573 312 743 442 621 624 376 221 222 618 1465 332 895 6075 Wait 1248 | 27 19 75 98 13 35 150 3 22 69 1 24 36 18 . 1 49 53 22 2 531 Move 16077 | 56 650 373 1113 696 1368 744 546 273 628 385 556 534 346 193 190 499 1319 284 749 4575 Hop 12 | . . . . . . . . . . . . . . . . . . . . 12 Pick Up 105 | 1 5 1 12 2 5 1 . 1 . . 5 . . 3 . 5 3 . 3 58 Fast Attach 154 | 5 9 . 6 7 7 11 2 . 7 2 2 2 1 4 . 6 6 4 11 62 Attach 102 | . 5 . 4 1 . . . . 3 3 1 5 . 5 . . 6 . 18 51 Detach 164 | . 8 . 9 3 1 9 . . 9 3 1 7 1 7 . 1 9 1 28 67 Swap 18 | . . . . 1 2 4 . 1 . . 4 . 2 . . . 1 . . 3 Drop 211 | . 7 . 9 7 14 10 . 2 4 2 5 5 2 3 . 10 10 8 13 100 Fire 861 | 12 55 20 49 13 . 49 13 6 13 32 23 13 4 5 17 42 47 13 60 375 Melee 46 | . 1 . 45 . . . . . . . . . . . . . . . . . Ram 1 | . . . . 1 . . . . . . . . . . . . . . . . Kick 1 | . 1 . . . . . . . . . . . . . . . . . . . Crush . | . . . . . . . . . . . . . . . . . . . . . Escape Stasis . | . . . . . . . . . . . . . . . . . . . . . Rewire 5 | . . . . . . . . . . . . 4 . 1 . . . . . . Trap . | . . . . . . . . . . . . . . . . . . . . . Miscellaneous 400 | . 15 2 31 5 . 4 9 7 10 14 . 18 2 . 14 6 11 . 11 241 Route ------- -11/Scrapyard -10/Materials (discovered 4 exits: *Mat x2 / *Min / Sub) -10/Mines (discovered 3 exits: *Mat x2 / *Sub) -10/Subcaves (discovered 4 exits: *Mat x2 / *Rec / *Scr) -7/Recycling (discovered 2 exits: *Fac / *Scr) -7/Scraptown (discovered 2 exits: *Fac x2) -5/Factory (discovered 8 exits: *Fac x4 / *Upp x2 / Ext x2) -5/Upper Caves -5/Upper Caves (discovered 2 exits: *Fac / *War) -5/Warlord -4/Proximity Caves -4/Factory (discovered 3 exits: *Res / *Upp x2) -4/Upper Caves -4/Upper Caves (discovered 2 exits: *Res / *Zhi) -4/Zhirov -3/Proximity Caves -3/Research (discovered 4 exits: *Res / Arm / *Qua x2) -3/Quarantine -2/Research (discovered 3 exits: Acc / *Tes x2) -2/Testing (discovered 3 exits: *Acc / *Sec / *Frg) -2/Protoforge 0bPrime History --------- Turn | Location | Event 4 | -11/Scrapyard | Discovered new exit (range 15) 9 | -11/Scrapyard | Upgraded with Propulsion slot (x1) 9 | -11/Scrapyard | Upgraded with Utility slot (x2) 9 | -11/Scrapyard | Upgraded with Weapon slot (x1) 120 | -11/Scrapyard | Entered Materials 123 | -10/Materials | Discovered new exit (range 16) 238 | -10/Materials | Upgraded with Propulsion slot (x2) 346 | -10/Materials | Upgraded with Utility slot (x7) 387 | -10/Materials | Discovered new exit (range 17) 504 | -10/Materials | Discovered new exit (range 16) 518 | -10/Materials | Build established: Wizard-Scout 521 | -10/Materials | Reached level 2 629 | -10/Materials | Learned Storage garrison access intel 633 | -10/Materials | Discovered new exit (range 8) 636 | -10/Materials | Identified exit to Materials 668 | -10/Materials | Learned location of 2 exits from Subcaves 683 | -10/Materials | Identified exit to Mines 684 | -10/Materials | Entered Mines 697 | -10/Mines | Discovered exit to Materials (range 15) 777 | -10/Mines | Discovered exit to Materials (range 12) 872 | -10/Mines | Assisted by bots powering up and referring to "LRC-V3" 937 | -10/Mines | Discovered new exit (range 14) 1006 | -10/Mines | Identified exit to Subcaves 1016 | -10/Mines | Entered Subcaves 1016 | -10/Subcaves | Accompanied by 5 allies 1017 | -10/Subcaves | Approached by a straggling Scientist 1017 | -10/Subcaves | Identified exit to Materials 1017 | -10/Subcaves | Identified exit to Recycling 1018 | -10/Subcaves | Reached level 3 1021 | -10/Subcaves | Led the pair of lost Derelicts to an unsafe place 1025 | -10/Subcaves | Shifting Twisted Machinery released Sub. Laser 1025 | -10/Subcaves | Shifting Twisted Machinery released Mak. Flight Unit 1178 | -10/Subcaves | Scientist uncovered a shortcut to Scraptown 1319 | -10/Subcaves | Build established: Wizard-Ninja 1350 | -10/Subcaves | Discovered exit to Materials (range 14) 1454 | -10/Subcaves | Visited 4L-MR0's lab 1461 | -10/Subcaves | Found Meta Core 1462 | -10/Subcaves | Attached Meta Core, gained temporary slots: Propulsion, Utility, Weapon 1463 | -10/Subcaves | Found Prototype Device 1463 | -10/Subcaves | Identified Sfc. Transmogrifier 1501 | -10/Subcaves | Shifting Twisted Machinery released Flamer 1504 | -10/Subcaves | Shifting Twisted Machinery released Mak. Light Armor Plating 1623 | -10/Subcaves | A swath of the cavern ceiling suddenly collapsed 1634 | -10/Subcaves | Lost 3 allies 1654 | -10/Subcaves | Learned Materials emergency access door positions 1930 | -10/Subcaves | Visited Clippyterm 1932 | -10/Subcaves | Learned location of Extension (-5) 1932 | -10/Subcaves | Learned 40 Factory zone layouts 1937 | -10/Subcaves | Shifting Twisted Machinery released Sub. Monowheel 1939 | -10/Subcaves | Shifting Twisted Machinery released Sub. Monowheel 1953 | -10/Subcaves | Reached level 4 1991 | -10/Subcaves | Entered Recycling 1993 | -7/Recycling | Reached level 5 2089 | -7/Recycling | Discovered new exit (range 8) 2294 | -7/Recycling | Build established: Wizard-Scout 2297 | -7/Recycling | Scanned before Scraplab entrance 2381 | -7/Recycling | Learned location of 2 exits from Proximity Caves 2418 | -7/Recycling | Discovered new exit (range 15) 2421 | -7/Recycling | Entered Scraplab 2425 | -7/Recycling | Identified exit to Scraptown 2427 | -7/Recycling | Entered Scraptown 2542 | -7/Scraptown | Discovered new exit (range 13) 2598 | -7/Scraptown | Visited Shadow of the Wyrm 2627 | -7/Scraptown | Visited Observation Area 2725 | -7/Scraptown | Visited Comm Corps 2749 | -7/Scraptown | Visited TADAMA 2767 | -7/Scraptown | Visited CPS Storage 2777 | -7/Scraptown | Visited Assassins FH 2792 | -7/Scraptown | Visited UFD Registry 2792 | -7/Scraptown | Registered with UFD as "Cryocase" 2818 | -7/Scraptown | Visited Junk Repository 2842 | -7/Scraptown | Upgraded with Utility slot (x2) 2858 | -7/Scraptown | Visited Chapter 10 2875 | -7/Scraptown | Visited Junk Repository 2890 | -7/Scraptown | Visited Abandonware Association 2897 | -7/Scraptown | Learned abandonware demo "TRNCOAT.EXE" 2908 | -7/Scraptown | Visited DA-N13 Charitable Foundation 2910 | -7/Scraptown | Found DCF Scrap (29 items) 2928 | -7/Scraptown | Visited Scrap Suit Storage 2943 | -7/Scraptown | Visited Cartography Club 2947 | -7/Scraptown | Discovered new exit (range 15) 3000 | -7/Scraptown | Learned location of Recycling (-7) 3000 | -7/Scraptown | Learned location of Lower Caves (-6) 3000 | -7/Scraptown | Learned location of Proximity Caves (-3) 3000 | -7/Scraptown | Learned location of Archives (-5) 3000 | -7/Scraptown | Learned location of Armory (-3) 3000 | -7/Scraptown | Learned 16 Factory zone layouts 3000 | -7/Scraptown | Learned 8 Research zone layouts 3000 | -7/Scraptown | Learned 16 Research zone layouts 3000 | -7/Scraptown | Learned 4 Access zone layouts 3000 | -7/Scraptown | Learned 4 Recycling zone layouts 3000 | -7/Scraptown | Learned 4 Storage zone layouts 3000 | -7/Scraptown | Learned 16 Upper Caves zone layouts 3000 | -7/Scraptown | Learned 16 Proximity Caves zone layouts 3000 | -7/Scraptown | Learned 20 Proximity Caves zone layouts 3000 | -7/Scraptown | Learned 4 Hub_04(d) zone layouts 3000 | -7/Scraptown | Learned location of 2 exits from Factory 3000 | -7/Scraptown | Learned location of 1 exit from Research 3016 | -7/Scraptown | Visited Science Testing Area 3028 | -7/Scraptown | Visited Botcube Research 3032 | -7/Scraptown | Found Botcube 3042 | -7/Scraptown | Visited Science Guys 3149 | -7/Scraptown | Met Optimus 3149 | -7/Scraptown | Accepted into 0bPrime 3198 | -7/Scraptown | Identified exit to Factory 3199 | -7/Scraptown | Entered Factory 3200 | -5/Factory | Identified exit to Extension 3200 | -5/Factory | Identified exit to Upper Caves 3201 | -5/Factory | Identified exit to Factory 3201 | -5/Factory | Reached level 6 3213 | -5/Factory | Reached level 7 3264 | -5/Factory | Destroyed 7 combat bots 3514 | -5/Factory | Upgraded with Utility slot (x2) 3527 | -5/Factory | Reached level 8 3887 | -5/Factory | Upgraded with Utility slot (x2) 3943 | -5/Factory | Entered Upper Caves 3944 | -5/Upper Caves | Identified exit to Upper Caves 3981 | -5/Upper Caves | Learned Factory terminal intel 4147 | -5/Upper Caves | Attracted the attention of an 0b10 checkpoint 4167 | -5/Upper Caves | Core integrity fell below 50% 4172 | -5/Upper Caves | Reached level 9 4198 | -5/Upper Caves | Upgraded with Utility slot (x2) 4198 | -5/Upper Caves | Found Alien Artifact 4198 | -5/Upper Caves | Identified Core Expander 4198 | -5/Upper Caves | Installed Core Expander, added new Power slot 4231 | -5/Upper Caves | Attacked by a delusional Derelict stockpiling parts 4301 | -5/Upper Caves | Entered another Upper Caves area 4308 | -5/Upper Caves | Discovered exit to Factory (range 14) 4477 | -5/Upper Caves | Learned Factory garrison access intel 4491 | -5/Upper Caves | Discovered new exit (range 13) 4502 | -5/Upper Caves | Identified exit to Warlord 4505 | -5/Upper Caves | Entered Warlord 4506 | -5/Warlord | Identified exit to Proximity Caves 4507 | -5/Warlord | Reached level 10 4527 | -5/Warlord | System corruption cleaned by Quarantine Array 4679 | -5/Warlord | Rebuked by Warlord 4703 | -5/Warlord | Warlord's base attacked by MAIN.C 4794 | -5/Warlord | Found Prototype Reactor 4794 | -5/Warlord | Identified Vortex Chain Reactor 4799 | -5/Warlord | Found Prototype Processor 4799 | -5/Warlord | Identified Exp. Targeting Computer 4809 | -5/Warlord | Found Prototype Processor 4809 | -5/Warlord | Identified Exp. Core Analyzer 4812 | -5/Warlord | Found Prototype Device 4812 | -5/Warlord | Identified Exp. Focal Shield 4965 | -5/Warlord | Opened side exit 4998 | -5/Warlord | Entered Proximity Caves 5000 | -4/Proximity Caves | Reached level 11 5051 | -4/Proximity Caves | Reached level 12 5088 | -4/Proximity Caves | Spotter reported a threat 5095 | -4/Proximity Caves | Spotted B-86 Titan 5107 | -4/Proximity Caves | Destroyed B-86 Titan 5141 | -4/Proximity Caves | Attracted the attention of an 0b10 checkpoint 5227 | -4/Proximity Caves | Learned location of 1 exit from Upper Caves 5273 | -4/Proximity Caves | Attracted the attention of an 0b10 outpost 5274 | -4/Proximity Caves | Spotter reported a threat 5306 | -4/Proximity Caves | Learned 4 Research zone layouts 5309 | -4/Proximity Caves | Entered Factory 5310 | -4/Factory | Loaded intel: 26 terminal locations 5311 | -4/Factory | Loaded intel: 4 garrison access locations 5311 | -4/Factory | Reached level 13 5333 | -4/Factory | Watched by a mysterious "MATRIX" hacker 5373 | -4/Factory | Spotted B-86 Titan 5377 | -4/Factory | Spotted B-86 Titan 5405 | -4/Factory | Loaded intel: 8 recycling unit locations 5433 | -4/Factory | Reached level 14 5459 | -4/Factory | Learned location of Protoforge (-2) 5482 | -4/Factory | Discovered new exit (range 19) 5522 | -4/Factory | Identified exit to Research 5529 | -4/Factory | Identified exit to Upper Caves 5677 | -4/Factory | Entered Upper Caves 5678 | -4/Upper Caves | Identified exit to Upper Caves 5728 | -4/Upper Caves | Attacked by a delusional Derelict stockpiling Unaware 5794 | -4/Upper Caves | Attracted the attention of an 0b10 checkpoint 5851 | -4/Upper Caves | Acquired the password to a Derelict Tinkerer's latest research 5856 | -4/Upper Caves | Found Prototype Special Weapon 5856 | -4/Upper Caves | Identified Molecular Deconstructor 5894 | -4/Upper Caves | Reached level 15 6001 | -4/Upper Caves | Entered another Upper Caves area 6001 | -4/Upper Caves | Accompanied by 4 allies 6001 | -4/Upper Caves | Discovered exit to Research (range 16) 6033 | -4/Upper Caves | Learned Research terminal intel 6064 | -4/Upper Caves | Encountered a Warlord checkpoint 6137 | -4/Upper Caves | Discovered new exit (range 17) 6175 | -4/Upper Caves | Identified exit to Zhirov 6176 | -4/Upper Caves | Entered Zhirov 6176 | -4/Zhirov | Discovered new exit (range 3) 6178 | -4/Zhirov | Reached level 16 6184 | -4/Zhirov | Met Zhirov 6193 | -4/Zhirov | Learned location of Quarantine (-3) 6193 | -4/Zhirov | Learned location of Testing (-2) 6193 | -4/Zhirov | Learned location of Command (-1) 6199 | -4/Zhirov | Zhirov requested help retrieving the SGEMP Prototype 6207 | -4/Zhirov | Found Alien Artifact 6207 | -4/Zhirov | Identified Integrated Dissipator 6207 | -4/Zhirov | Installed Integrated Dissipator, increased core heat dissipation (+20) 6215 | -4/Zhirov | Found Alien Artifact 6238 | -4/Zhirov | Attached CPS modules to MY-C7R(L) 6283 | -4/Zhirov | Identified exit to Proximity Caves 6283 | -4/Zhirov | Entered Proximity Caves 6285 | -3/Proximity Caves | Reached level 17 6412 | -3/Proximity Caves | Entered Research 6413 | -3/Research | Identified exit to Research 6414 | -3/Research | Identified exit to Quarantine 6414 | -3/Research | Reached level 18 6415 | -3/Research | Loaded intel: 25 terminal locations 6416 | -3/Research | Destroyed 8 combat bots 6453 | -3/Research | Identified exit to Armory 6483 | -3/Research | Loaded intel: 5 recycling unit locations 6502 | -3/Research | Reached level 19 6655 | -3/Research | Destroyed 7 combat bots 6739 | -3/Research | Spotted B-86 Titan 6768 | -3/Research | Reached level 20 6776 | -3/Research | Entered Quarantine 6778 | -3/Quarantine | Reached level 21 6793 | -3/Quarantine | Spotted Alpha 7 6808 | -3/Quarantine | Destroyed Alpha 7 6818 | -3/Quarantine | Found Alien Launcher 6818 | -3/Quarantine | Identified Sigix Terminator 6946 | -3/Quarantine | Targeted by mysterious "MATRIX" hacker 7090 | -3/Quarantine | Learned Section 7 trap positions 7134 | -3/Quarantine | Found Alien Artifact 7134 | -3/Quarantine | Identified Core Reset Matrix 7134 | -3/Quarantine | Identified Transdimensional Reconstructor 7134 | -3/Quarantine | Reached level 22 7134 | -3/Quarantine | Used Core Reset Matrix 7138 | -3/Quarantine | Detected hypermatrix surge 7138 | -3/Quarantine | Sensed 14 artifacts in vicinity 7180 | -3/Quarantine | Reached level 23 7234 | -3/Quarantine | Discovered exit to Research (range 30) 7248 | -3/Quarantine | Learned Research emergency access door positions 7277 | -3/Quarantine | Learned Research trap positions 7298 | -3/Quarantine | Learned Research stockpile data 7308 | -3/Quarantine | Learned 4 Access zone layouts 7328 | -3/Quarantine | Learned Access terminal intel 7417 | -3/Quarantine | Met incapacitated Sigix Warrior 7417 | -3/Quarantine | Lockdown squad dispatched 7417 | -3/Quarantine | Reached level 24 7421 | -3/Quarantine | Acquired the access code to the Sigix quarantine chamber 7422 | -3/Quarantine | Unlocked Sigix quarantine chamber 7424 | -3/Quarantine | Found Sigix Containment Pod 7447 | -3/Quarantine | Learned Section 7 security intel 7454 | -3/Quarantine | Spotted Lightning 7478 | -3/Quarantine | Entered Research 7479 | -2/Research | Identified exit to Access 7480 | -2/Research | Loaded intel: 55 trap records 7480 | -2/Research | Reached level 25 7492 | -2/Research | Identified exit to Testing 7534 | -2/Research | Central database locked down 7600 | -2/Research | Botcube activated 7612 | -2/Research | Botcube completed mutation into hovering form, armed with 1 cannon 7648 | -2/Research | Entered Testing 7648 | -2/Testing | Accompanied by 1 ally 7650 | -2/Testing | Reached level 26 7747 | -2/Testing | Found Prototype Device 7747 | -2/Testing | Identified Exp. Actuator Array 7761 | -2/Testing | Found Prototype Device 7761 | -2/Testing | Identified AEGIS Remote Shield 7788 | -2/Testing | Found Prototype Ballistic Cannon 7788 | -2/Testing | Identified Omega Cannon 7860 | -2/Testing | Reached level 27 7863 | -2/Testing | Discovered exit to Access (range 25) 7871 | -2/Testing | Scanned by Researcher 7891 | -2/Testing | Found Prototype Processor 7891 | -2/Testing | Identified Spectral Analyzer 7927 | -2/Testing | Found Prototype Ballistic Cannon 7927 | -2/Testing | Identified Perforator 7937 | -2/Testing | Reached level 28 7969 | -2/Testing | Spotted Fortress 8037 | -2/Testing | Destroyed Fortress 8076 | -2/Testing | Discovered new exit (range 22) 8077 | -2/Testing | Discovered new exit (range 19) 8078 | -2/Testing | Destroyed 8 combat bots 8082 | -2/Testing | Identified exit to Protoforge 8084 | -2/Testing | Identified exit to Section 7 8085 | -2/Testing | Entered Protoforge 8086 | -2/Protoforge | Sensed 2 artifacts in vicinity 8087 | -2/Protoforge | Reached level 29 8090 | -2/Protoforge | Reached level 30 8233 | -2/Protoforge | Superfortress began startup sequence 8250 | -2/Protoforge | Spotted B-90 Cyclops 8279 | -2/Protoforge | Destroyed B-90 Cyclops 8297 | -2/Protoforge | Found Unknown Device 8297 | -2/Protoforge | Identified Quantum Capacitor 8308 | -2/Protoforge | Spotted Overlord 8361 | -2/Protoforge | Spotted Decapitator 8361 | -2/Protoforge | Spotted Decapitator 8361 | -2/Protoforge | Spotted Decapitator 8361 | -2/Protoforge | Spotted Decapitator 8361 | -2/Protoforge | Destroyed Decapitator 8363 | -2/Protoforge | Destroyed Decapitator 8363 | -2/Protoforge | Destroyed Decapitator 8366 | -2/Protoforge | Destroyed Decapitator 8411 | -2/Protoforge | Spotted Hotshot 8411 | -2/Protoforge | Spotted Hotshot 8421 | -2/Protoforge | Destroyed Hotshot 8446 | -2/Protoforge | Destroyed Hotshot 8468 | -2/Protoforge | Fired Sigix Terminator 8468 | -2/Protoforge | Reached level 31 8468 | -2/Protoforge | Additional patrols dispatched to research labs 8468 | -2/Protoforge | Reached level 32 8585 | -2/Protoforge | First assault squad dispatched 8593 | -2/Protoforge | Spotted Hotshot 8595 | -2/Protoforge | Spotted Hotshot 8602 | -2/Protoforge | Spotted Immortal 8602 | -2/Protoforge | Spotted Immortal 8605 | -2/Protoforge | Spotted Decapitator 8605 | -2/Protoforge | Destroyed Decapitator 8610 | -2/Protoforge | Spotted Decapitator 8610 | -2/Protoforge | Spotted V869-x 8610 | -2/Protoforge | Spotted V992-u 8615 | -2/Protoforge | Destroyed Decapitator 8616 | -2/Protoforge | Spotted V274-l 8627 | -2/Protoforge | Spotted Decapitator 8627 | -2/Protoforge | Spotted Decapitator 8627 | -2/Protoforge | Spotted Decapitator 8635 | -2/Protoforge | Destroyed Immortal 8646 | -2/Protoforge | Destroyed V274-l 8647 | -2/Protoforge | Destroyed Immortal 8651 | -2/Protoforge | Destroyed V992-u 8654 | -2/Protoforge | Destroyed V869-x 8656 | -2/Protoforge | Destroyed Hotshot 8662 | -2/Protoforge | Destroyed Hotshot 8671 | -2/Protoforge | Found Prototype Hover Unit 8671 | -2/Protoforge | Identified Cep. Combat Aerolev Unit 8677 | -2/Protoforge | Found Prototype Processor 8677 | -2/Protoforge | Identified Cep. Projectile Intercept Suite 8683 | -2/Protoforge | Destroyed 11 combat bots 8729 | -2/Protoforge | Spotted V525-v 8737 | -2/Protoforge | Destroyed V525-v 8896 | -2/Protoforge | Spotted Decapitator 8896 | -2/Protoforge | Spotted Decapitator 8896 | -2/Protoforge | Spotted Decapitator 8896 | -2/Protoforge | Spotted Decapitator 8902 | -2/Protoforge | Spotted Immortal 8902 | -2/Protoforge | Spotted Immortal 8903 | -2/Protoforge | Found Prototype Device 8907 | -2/Protoforge | Destroyed Decapitator 8907 | -2/Protoforge | Destroyed Decapitator 8909 | -2/Protoforge | Destroyed Decapitator 8911 | -2/Protoforge | Destroyed Decapitator 8958 | -2/Protoforge | Destroyed 13 combat bots 8973 | -2/Protoforge | Spotted V893-h 8973 | -2/Protoforge | Spotted V264-z 8973 | -2/Protoforge | Spotted V480-d 8973 | -2/Protoforge | Spotted V878-b 8976 | -2/Protoforge | Identified Crosscalibrator 8981 | -2/Protoforge | Reached level 33 8985 | -2/Protoforge | Destroyed V878-b 8993 | -2/Protoforge | Destroyed V264-z 9011 | -2/Protoforge | Destroyed V893-h 9029 | -2/Protoforge | Found Prototype Processor 9029 | -2/Protoforge | Identified Exp. Target Analyzer 9031 | -2/Protoforge | Found Prototype Storage 9031 | -2/Protoforge | Identified Cep. Chromion Battery 9039 | -2/Protoforge | Found Cep. Fieldthrust Drive 9044 | -2/Protoforge | Found Cep. Fieldthrust Drive 9120 | -2/Protoforge | Destroyed Immortal 9120 | -2/Protoforge | Destroyed Immortal 9124 | -2/Protoforge | Spotted Decapitator 9124 | -2/Protoforge | Spotted Decapitator 9124 | -2/Protoforge | Spotted Decapitator 9124 | -2/Protoforge | Spotted Decapitator 9132 | -2/Protoforge | Found Prototype Device 9132 | -2/Protoforge | Identified Cep. Antimissile System 9138 | -2/Protoforge | Destroyed Decapitator 9140 | -2/Protoforge | Destroyed Decapitator 9142 | -2/Protoforge | Destroyed Decapitator 9144 | -2/Protoforge | Destroyed Decapitator 9290 | -2/Protoforge | Spotted Decapitator 9290 | -2/Protoforge | Spotted Decapitator 9290 | -2/Protoforge | Spotted V168-d 9290 | -2/Protoforge | Spotted V322-r 9293 | -2/Protoforge | Destroyed Decapitator 9306 | -2/Protoforge | Destroyed V168-d 9315 | -2/Protoforge | Destroyed Decapitator 9326 | -2/Protoforge | Destroyed V322-r 9346 | -2/Protoforge | Found Prototype Energy Cannon 9346 | -2/Protoforge | Identified Cep. Plasma Driver 9347 | -2/Protoforge | Destroyed 11 combat bots 9348 | -2/Protoforge | Found Prototype Energy Gun 9348 | -2/Protoforge | Identified Cep. Lightning Penetrator 9354 | -2/Protoforge | Found Cep. Plasma Driver 9382 | -2/Protoforge | Destroyed Decapitator 9384 | -2/Protoforge | Destroyed Decapitator 9387 | -2/Protoforge | Destroyed Decapitator 9397 | -2/Protoforge | Spotted V663-o 9397 | -2/Protoforge | Destroyed V663-o 9403 | -2/Protoforge | Found Prototype Device 9403 | -2/Protoforge | Identified Cep. Hypertargeting System 9404 | -2/Protoforge | Found Prototype Device 9404 | -2/Protoforge | Identified Cep. Recoil Nullifier 9410 | -2/Protoforge | Found Prototype Processor 9410 | -2/Protoforge | Identified Exp. Targeting Computer 9425 | -2/Protoforge | Found Exp. Kinecellerator 9431 | -2/Protoforge | Found Cep. Recoil Nullifier 9454 | -2/Protoforge | Spotted V356-a 9454 | -2/Protoforge | Spotted V420-y 9455 | -2/Protoforge | Spotted Immortal 9457 | -2/Protoforge | Destroyed Immortal 9459 | -2/Protoforge | Spotted V787-s 9463 | -2/Protoforge | Spotted V354-q 9468 | -2/Protoforge | Destroyed V354-q 9472 | -2/Protoforge | Found Prototype Device 9472 | -2/Protoforge | Identified Cep. Hardlight Director 9474 | -2/Protoforge | Found Prototype Device 9474 | -2/Protoforge | Identified Exp. EM Disruption Field 9477 | -2/Protoforge | Found Unknown Protection 9477 | -2/Protoforge | Identified Imp. Powered Armor 9628 | -2/Protoforge | Spotted AP7-3 9628 | -2/Protoforge | Spotted AP7-3 9656 | -2/Protoforge | Destroyed AP7-3 9664 | -2/Protoforge | Destroyed AP7-3 9670 | -2/Protoforge | Found Prototype Device 9670 | -2/Protoforge | Identified Exp. ECM Suite 9687 | -2/Protoforge | Found Prototype Device 9687 | -2/Protoforge | Identified Cep. Thermoelectric Network 9778 | -2/Protoforge | Reached level 34 9820 | -2/Protoforge | Found Cep. Matter Streamer 9825 | -2/Protoforge | Destroyed 22 combat bots 9870 | -2/Protoforge | Destroyed Overlord 9962 | -2/Protoforge | Destroyed 12 combat bots 9972 | -2/Protoforge | Spotted Hotshot 9973 | -2/Protoforge | Spotted Hotshot 9975 | -2/Protoforge | Destroyed Hotshot 9977 | -2/Protoforge | Destroyed Hotshot 9987 | -2/Protoforge | Spotted Hotshot 9987 | -2/Protoforge | Spotted Hotshot 9989 | -2/Protoforge | Destroyed Hotshot 9996 | -2/Protoforge | Destroyed Hotshot 9999 | -2/Protoforge | Spotted AP7-3 9999 | -2/Protoforge | Spotted AP7-3 10012 | -2/Protoforge | Destroyed AP7-3 10017 | -2/Protoforge | Destroyed AP7-3 10024 | -2/Protoforge | Spotted SKR-2 10024 | -2/Protoforge | Spotted SKR-2 10025 | -2/Protoforge | Spotted SKR-2 10026 | -2/Protoforge | Spotted EXE-6 10026 | -2/Protoforge | Spotted EXE-6 10031 | -2/Protoforge | Destroyed EXE-6 10040 | -2/Protoforge | Destroyed EXE-6 10048 | -2/Protoforge | Destroyed SKR-2 10052 | -2/Protoforge | Destroyed SKR-2 10054 | -2/Protoforge | Destroyed SKR-2 10075 | -2/Protoforge | Destroyed 11 combat bots 10090 | -2/Protoforge | Spotted EXE-6 10090 | -2/Protoforge | Spotted EXE-6 10099 | -2/Protoforge | Destroyed EXE-6 10104 | -2/Protoforge | Destroyed EXE-6 10156 | -2/Protoforge | Fabricated C-57 Dissector? 10161 | -2/Protoforge | UFD initiated attack on Protoforge (Readiness: Adequate) 10161 | -2/Protoforge | Loaded intel: 3 recycling unit locations 10229 | -2/Protoforge | Optimus greeted in Protoforge 10293 | -2/Protoforge | Destroyed 36 combat bots 10321 | -2/Protoforge | Found UFD Drillbomb 10325 | -2/Protoforge | Found UFD Drillbomb 10343 | -2/Protoforge | Spotted Striker 10345 | -2/Protoforge | Destroyed Striker 10345 | -2/Protoforge | Spotted Striker 10347 | -2/Protoforge | Destroyed Striker 10367 | -2/Protoforge | Installed UFD Drillbomb at designated target 10367 | -2/Protoforge | UFD reported confirmed Drillbomb installation 10391 | -2/Protoforge | Installed UFD Drillbomb at designated target 10391 | -2/Protoforge | UFD reported confirmed Drillbomb installation 10392 | -2/Protoforge | UFD reported confirmed Drillbomb installation 10412 | -2/Protoforge | Spotted Striker 10415 | -2/Protoforge | Spotted Executioner 10417 | -2/Protoforge | Destroyed Striker 10419 | -2/Protoforge | Destroyed Executioner 10449 | -2/Protoforge | Found UFD Drillbomb 10450 | -2/Protoforge | Found UFD Drillbomb 10455 | -2/Protoforge | Destroyed 13 combat bots 10493 | -2/Protoforge | Installed UFD Drillbomb at designated target 10493 | -2/Protoforge | UFD reported confirmed Drillbomb installation 10508 | -2/Protoforge | Installed UFD Drillbomb at designated target 10508 | -2/Protoforge | UFD reported confirmed Drillbomb installation 10511 | -2/Protoforge | Found UFD Drillbomb 10519 | -2/Protoforge | Spotted Executioner 10519 | -2/Protoforge | Spotted Executioner 10519 | -2/Protoforge | Reached level 35 10519 | -2/Protoforge | Destroyed Executioner 10519 | -2/Protoforge | Destroyed Executioner 10539 | -2/Protoforge | Spotted Striker 10542 | -2/Protoforge | Destroyed Striker 10550 | -2/Protoforge | Spotted Striker 10551 | -2/Protoforge | Spotted Striker 10551 | -2/Protoforge | Spotted Executioner 10552 | -2/Protoforge | Destroyed Striker 10552 | -2/Protoforge | Destroyed Executioner 10552 | -2/Protoforge | Destroyed Striker 10559 | -2/Protoforge | Spotted Executioner 10560 | -2/Protoforge | Spotted Executioner 10562 | -2/Protoforge | Destroyed Executioner 10562 | -2/Protoforge | Destroyed Executioner 10570 | -2/Protoforge | Spotted Executioner 10572 | -2/Protoforge | Destroyed Executioner 10599 | -2/Protoforge | Installed UFD Drillbomb at designated target 10599 | -2/Protoforge | UFD reported confirmed Drillbomb installation 10602 | -2/Protoforge | Destroyed 28 combat bots 10612 | -2/Protoforge | UFD reported confirmed Drillbomb installation 10627 | -2/Protoforge | Found UFD Drillbomb 10629 | -2/Protoforge | Found UFD Drillbomb 10660 | -2/Protoforge | Spotted Executioner 10660 | -2/Protoforge | Spotted Striker 10660 | -2/Protoforge | Spotted Executioner 10660 | -2/Protoforge | Spotted Executioner 10661 | -2/Protoforge | Destroyed Striker 10664 | -2/Protoforge | Spotted Executioner 10664 | -2/Protoforge | Destroyed Executioner 10666 | -2/Protoforge | Destroyed Executioner 10666 | -2/Protoforge | Destroyed Executioner 10666 | -2/Protoforge | Destroyed Executioner 10683 | -2/Protoforge | Discovered exit to Access (range 17) 10697 | -2/Protoforge | Installed UFD Drillbomb at designated target 10697 | -2/Protoforge | UFD reported confirmed Drillbomb installation 10698 | -2/Protoforge | Destroyed 16 combat bots 10713 | -2/Protoforge | Installed UFD Drillbomb at designated target 10713 | -2/Protoforge | UFD reported confirmed Drillbomb installation 10750 | -2/Protoforge | Spotted Executioner 10750 | -2/Protoforge | Destroyed Executioner 10752 | -2/Protoforge | Spotted Executioner 10752 | -2/Protoforge | Destroyed Executioner 10769 | -2/Protoforge | Spotted Striker 10770 | -2/Protoforge | Destroyed Striker 10772 | -2/Protoforge | Spotted Striker 10791 | -2/Protoforge | Destroyed 16 combat bots 10800 | -2/Protoforge | UFD reported confirmed Drillbomb installation 10801 | -2/Protoforge | UFD began Drillbomb countdown 10901 | *** | Defending 0bPrime! Last Messages --------------- 10869_ N-04 Retriever inserts Exp. Heat Sink into Forge Plexus. 10870_ N-04 Retriever inserts Exp. Targeting Computer into Forge Plexus. 10871_ N-04 Retriever inserts Imp. Quantum Reactor into Forge Plexus. 10891_ 0bP_NET: LISTEN AND RECITE! 10892_ 0bP_NET: Dude, not now. 10893_ 0bP_NET: Oh c'mon, can't we all just count together? 10893_ N-04 Retriever inserts Helical Railgun into Forge Plexus. 10894_ 0bP_NET: Fine. T-7, in case you lost count already. 10894_ N-04 Retriever inserts Unknown Reactor into Forge Plexus. 10895_ 0bP_NET: Before the zero cycle! 10895_ N-04 Retriever inserts Unknown Flight Unit into Forge Plexus. 10896_ 0bP_NET: Dammit not like that... 10896_ N-04 Retriever inserts Unknown Ballistic Gun into Forge Plexus. 10897_ 0bP_NET: Okay how about this, the iron fist is going to be less iron in T-4. 10897_ N-04 Retriever inserts Unknown Flight Unit into Forge Plexus. 10898_ 0bP_NET: That's a little better. 10899_ 0bP_NET: PRAISE BE TO GREAT NUT! 10900_ 0bP_NET: Dammit, I said..., ugh, T-1 folks! Take cover! [Achievement: Robotopia] Map ----- +----------------------------------------------------+ | ###################### " " "" """" " | | ###################### """"" "" "" | | ###################### " "" " "" | | ###################### """" "" """"" | | ############# ### """" "" """""" | | ####### # """"### " """"""" | | ####### # """"### "" " """""""" | | ####### " + """"### " """"""""" | | ####### # """"### "/%"" """""""""" | | ####### # ### """"" %""%"""""""""""" | | ######## ########### "" "" " """"""""""" | | """ " ########### "" " %% """"""""""" | | """ " ########### "" " """""""""""" | | """ + ########### "" " """""""""""" | | #% ########### " """""""""""" | | #% ########### " """""""""""" | | ######## ########### "" " """""""""""" | | #######"%% ########### " "" """""""""""" | | # ####" ########### ""E n " """""""""""" | | """""""" ######### # " """ """"" " """""""""""" | | E " #### ##### "" " """""""""""" | | % # # # ###### ss " """"""""""" | | !!=[ ; ;## # " # s """"""""""" | | !=% ; ; % # "" """" "" """"""""""" | | ; n !j% % " " s" """""""""" | | """ ; * SS% % E @ % s" """"""""" | | " " ; % SS % % % "" j """""""" | | " ; %%# # # ## % "" SS" j ss""""""" | | # % ########### "" SS" "" E """""" | | ########% ########### """ s "" """"" | | ######" ########### " s"" | | %% %% ["########## "" """ E | | % [ ########### " """ "" " """"" | | "########## " "" | | #######"#"########### "" " j | | "####### ##### " " "" " """ s"" | | "####### ##### " " """" | | "###!!##! ##### "" " " """ " | | ####*%## ##### "" "" " " " | | ^%!=!##+############ " "" j " | | !||=!!! ########## "" "" " """"" " | | """ !=####+########## " " " " " | | """ ! # ######## "" "" = | | """ # """ ######## % " "" %%=/ | | """ # ######## "" % "" """""""""" | | """ # """ ######## """ %% " " " | | """ # ##############"% ################### | | # ###############";###########"""""""" | | ###################### ################## | | #### ###################### ################## | +----------------------------------------------------+ Best States ------------- Heat Dissipation 213 Coolant Potential 100 Energy Generation 140 Energy Capacity 1000 Matter Stores 2000 Matter Capacity 2000 Sight Range 30 Robot Scan Range 34 Terrain Scan Range 24 Terrain Scan Density 5010 ECM Strength 1 Jamming Range 16 EM Shielding 4 Armor Coverage 925 Resistance: KI 30 Resistance: TH 25 Resistance: EX 25 Resistance: EM 20 Utility Shielding 66 Point Defense Rating 480 Weapon Cycling 25 Evasion (%) 80 Targeting Accuracy 12 Target Analysis 14 Core Analysis 11 Armor Integrity Analysis 40 Recoil Reduction 99 Particle Charging 25 Kinecelleration 66 Offensive Hacking 125 Defensive Hacking 100 Item Schematics ----------------- Cld. Q-thruster | -2/Research | Hacked Exp. Thermal Defense Suite | -2/Protoforge | Archive Lgt. Antimatter Cannon | -2/Protoforge | Archive Vibroblade | -2/Protoforge | Archive Exp. Cloaking Device | -2/Protoforge | Archive Zero-point Reactor | -2/Protoforge | Archive Hvy. Dispersion Rifle | -2/Protoforge | Archive Nanosword | -2/Protoforge | Archive Proton Burst Cannon | -2/Protoforge | Archive Robot Schematics ------------------ R-06 Scavenger | -2/Protoforge | Archive A-27 Freighter | -2/Protoforge | Archive Fabricated ------------ C-57 Dissector | x3 | -2/Protoforge | Preloaded Repaired ---------- Nothing Studied --------- Hvy. Gauss Cannon | -2/Testing | Hacked Imp. Plasma Cutter | -2/Testing | Hacked Adv. Remote Datajack | -2/Testing | Hacked Enh. Hardcell Cannon | -2/Testing | Hacked Alien Tech Used ----------------- Core Expander Integrated Dissipator Sigix Terminator Core Reset Matrix Achievements -------------- Frankenstein Not Immortal After All Please No, Not That Robotopia Challenges ------------ None RPGLIKE | -11 -10 -10 -10 -7 -7 -5 -5 -5 -5 -4 -4 -4 -4 -4 -3 -3 -3 -2 -2 -2 --------- Run | Yrd Mat Min Sub Rec Scr Fac Upp Upp War Pro Fac Upp Upp Zhi Pro Res Qua Res Tes Frg Levels Raised 34 | . 1 . 2 1 . 3 1 . 1 2 2 1 . 1 1 3 4 1 3 7 XP Earned 55060 | 3000 1825 700 2515 1400 900 4000 950 750 1722 2800 2450 1500 850 650 1700 3800 6275 2300 4385 10588 XP Spent 478180 | 192280 15900 . . 22800 6700 35000 35010 . 33250 15700 . . 43775 . . . . . 15750 62015 Upgrades 306 | 170 9 . . 8 2 14 19 . 6 2 . . 32 . . . . . 20 24 Propulsion Slot 3 | 1 2 . . . . . . . . . . . . . . . . . . . Utility Slot 17 | 2 7 . . . 2 4 2 . . . . . . . . . . . . . Weapon Slot 1 | 1 . . . . . . . . . . . . . . . . . . . . Core Integrity 8 | 8 . . . . . . . . . . . . . . . . . . . . Heat Dissipation 26 | 5 . . . . . . 8 . . . . . . . . . . . . 13 Energy Generation 17 | 5 . . . . . . 9 . . . . . . . . . . . . 3 Energy Storage 6 | 4 . . . . . . . . . . . . . . . . . . . 2 Matter Storage 34 | 14 . . . . . . . . . . . . . . . . . . 20 . Mass Support 21 | 2 . . . 8 . . . . 5 2 . . . . . . . . . 4 Inventory Capacity 13 | 10 . . . . . . . . 1 . . . . . . . . . . 2 Sight Range 14 | 4 . . . . . 10 . . . . . . . . . . . . . . Sensor Range 17 | 15 . . . . . . . . . . . . 2 . . . . . . . Terrain Scan Density 50 | 20 . . . . . . . . . . . . 30 . . . . . . . Ranged Accuracy 14 | 14 . . . . . . . . . . . . . . . . . . . . Hack Attack % 25 | 25 . . . . . . . . . . . . . . . . . . . . Hack Defense % 20 | 20 . . . . . . . . . . . . . . . . . . . . KI Resistance % 4 | 4 . . . . . . . . . . . . . . . . . . . . TH Resistance % 4 | 4 . . . . . . . . . . . . . . . . . . . . EX Resistance % 4 | 4 . . . . . . . . . . . . . . . . . . . . KI Damage % 4 | 4 . . . . . . . . . . . . . . . . . . . . EX Damage % 4 | 4 . . . . . . . . . . . . . . . . . . . . Protomatter Created 6674 | . 123 13 62 32 . 271 81 . 20 82 7 153 6 . 93 193 34 . 89 5415 Integrity Restored 6314 | . 301 28 566 96 . 90 207 150 . 243 . 365 18 . 264 124 232 . 230 3400 Core 4070 | . 197 21 383 96 . 90 207 150 . 218 . 302 9 . 88 124 120 . 212 1853 Parts 2244 | . 104 7 183 . . . . . . 25 . 63 9 . 176 . 112 . 18 1547 Protomatter Decayed 3636 | . 19 3 34 . . 148 63 5 24 . 7 243 121 . . 40 14 . 86 2829 Game ------ Seed PulseMasterVibroblade Manual? 0 Play Time 03:45:19 Cumulative 385.1 hours Start 2026.08.09 @ 22:11:17 End 2026.08.10 @ 23:27:35 Sessions 3 Manual Loads 0 Difficulty Rogue Special Mode Winter2019/RPGLIKE Game No. 140 Rogue 4 Adventurer 2 Explorer 134 Win Type 9 Total 36 Types 19/3/6/3/1/1/1/0/1/1 Lore% 83 Gallery% 79 Achievement% 68 Wizard Run 0 Options --------- Layout 0 ASCII 0 Keyboard 1 Movement Numpad Keybinds 0 Fullscreen 2 Font 18/X11 Map View 76x50 Zoom Use 0% Tactical HUD 1 Map Filters BRIGHTNESS(150) Filters NONE Steam 1 RUN: a0d7d16b-fb27-4d38-aad2-36fadf47e242